bitfinex/quotes_ETHUSD_20250518
["timestamp","ask_amount","ask_price","bid_price","bid_amount"]
[1747604242360,8.0,2420.6,2420.5,10.159]
[1747604242561,8.0,2420.6,2420.5,10.709]
[1747604242968,12.13121181,2420.6,2420.5,10.709]
[1747604243790,8.0,2420.6,2420.0,17.845]
[1747604243993,4.13188992,2420.2,2420.1,10.137]
[1747604244194,4.13186556,2420.3,2420.1,10.687]
[1747604244395,8.0,2420.6,2420.2,0.55]
[1747604244599,12.13122387,2420.6,2420.2,0.55]
[1747604244996,12.12346582,2420.6,2420.2,0.55]
[1747604245197,7.99224195,2420.6,2420.2,4.68186632]
[1747604245505,12.12348046,2420.6,2420.2,0.55]
[1747604245707,4.13096542,2420.8,2420.2,8.23352829]
[1747604246000,4.13104502,2420.7,2420.4,0.55]
[1747604246166,4.13098986,2420.8,2420.4,0.55]
[1747604246367,0.7863,2421.4,2420.6,0.55]
[1747604246575,4.13056884,2421.0,2420.8,0.55]
[1747604246792,4.13029489,2421.2,2420.8,0.55]
[1747604246992,4.13069016,2421.0,2420.8,0.55]
[1747604247374,0.7506,2421.7,2420.8,0.55]
[1747604247573,14.9580557,2421.7,2420.8,0.55]
[1747604247775,4.13021006,2421.2,2421.0,0.55]
[1747604248003,4.12997088,2421.4,2421.0,2.3892]
[1747604248209,4.12995668,2421.4,2421.0,2.3892]
[1747604248393,4.13010869,2421.3,2421.0,0.55]
[1747604248706,4.13010575,2421.3,2421.0,0.55]
[1747604248886,4.13014032,2421.3,2421.0,0.55]
[1747604249212,4.12916012,2421.8,2421.0,0.55]
[1747604249369,4.13003627,2421.3,2421.0,0.55]
[1747604249572,4.13003627,2421.3,2421.0,2.80227997]
[1747604249773,4.12950115,2421.6,2421.0,2.80227997]
[1747604249973,4.13035397,2421.1,2421.0,0.55]
[1747604250196,8.0,2421.8,2421.0,0.55]
[1747604250197,4.13015725,2421.3,2421.0,0.55]
[1747604251430,12.12898963,2421.9,2421.3,0.00677441]
[1747604251627,4.12967169,2421.5,2421.4,10.685]
[1747604252603,4.12967169,2421.5,2421.4,10.684]
[1747604257041,4.12967169,2421.5,2421.4,0.55]
[1747604257182,4.12967169,2421.5,2421.4,10.683]
[1747604257387,4.12235293,2421.5,2421.4,10.683]
[1747604257686,12.12967169,2421.5,2421.4,10.133]
[1747604258124,4.12967169,2421.5,2421.4,10.133]
[1747604261821,12.12967169,2421.5,2421.4,10.132]
[1747604262322,12.13035397,2421.1,2421.0,0.00677441]
[1747604262523,12.96205397,2421.1,2421.0,0.00677441]
[1747604263307,4.13120713,2420.6,2420.5,0.55677441]
[1747604263520,12.13120713,2420.6,2420.5,0.00677441]
[1747604263720,12.12568454,2420.6,2420.5,0.00677441]
[1747604267535,12.88858454,2420.6,2420.5,0.00677441]
[1747604268320,8.0,2420.6,2420.5,0.55677441]
[1747604268527,4.43696006,2421.3,2420.5,1.57085185]
[1747604268732,4.12994675,2421.4,2420.7,4.13093388]
[1747604269031,9.837,2421.6,2420.8,0.96309339]
[1747604269207,4.13012099,2421.3,2421.0,0.55]
[1747604269533,4.13035397,2421.1,2421.0,0.55]
[1747604269937,4.1300128,2421.3,2421.0,0.55]
[1747604270101,4.13035397,2421.1,2421.0,0.55]
[1747604271004,4.13025335,2421.2,2421.0,0.55]
[1747604271204,4.13035397,2421.1,2421.0,0.55]
[1747604272233,4.12357956,2421.1,2421.0,0.55]
[1747604273738,4.12357956,2421.1,2421.0,0.837911]
[1747604273938,8.0,2421.5,2421.0,0.837911]
[1747604274339,4.13016452,2421.3,2421.0,0.837911]
[1747604274721,4.13019997,2421.2,2421.1,0.837911]
[1747604275830,0.31160466,2421.4,2421.1,0.837911]
[1747604276038,4.13018338,2421.2,2421.1,0.837911]
[1747604278018,4.13018338,2421.2,2421.1,0.55]
[1747604280042,4.13011913,2421.3,2421.1,0.55]
[1747604280741,4.13018338,2421.2,2421.1,0.55]
[1747604281246,4.13018338,2421.2,2421.1,10.377]
[1747604282146,4.12444665,2421.2,2421.1,10.377]
[1747604286923,4.13018338,2421.2,2421.1,10.377]
[1747604287253,12.1300128,2421.3,2421.2,0.55]
[1747604287554,8.0,2421.3,2421.2,0.55]
[1747604287766,4.1300128,2421.3,2421.2,0.55]
[1747604287935,12.1300128,2421.3,2421.2,0.83806183]
[1747604288335,7.99519587,2421.3,2421.2,0.83806183]
[1747604288758,0.8095,2422.0,2421.5,0.55]
[1747604289051,4.12930507,2421.8,2421.6,9.526]
[1747604289230,4.12898963,2421.9,2421.7,0.55]
[1747604289435,4.12885147,2422.0,2421.7,0.55]
[1747604290161,4.12892205,2422.0,2421.7,0.55]
[1747604290365,8.0,2421.9,2421.7,0.55]
[1747604290657,12.12884704,2422.0,2421.7,0.55]
[1747604291458,4.128992,2421.9,2421.7,0.55]
[1747604291676,4.12782035,2422.6,2421.7,2.0490286]
[1747604291881,9.483,2422.6,2421.7,2.0490286]
[1747604292050,4.12844412,2422.3,2421.7,6.17824895]
[1747604292375,8.0,2422.5,2421.9,0.55]
[1747604292582,4.12816733,2422.4,2421.9,4.67894784]
[1747604292893,4.12727599,2423.0,2422.4,0.55]
[1747604293042,4.12727599,2423.0,2422.3,0.7847]
[1747604293043,0.7536,2423.2,2422.6,0.55]
[1747604293247,4.12694482,2423.1,2422.8,0.55]
[1747604293447,4.12677896,2423.2,2422.8,0.55]
[1747604293680,5.03163113,2423.6,2422.8,0.55]
[1747604293980,4.12659214,2423.4,2422.8,0.55]
[1747604294182,4.27803113,2423.6,2422.9,2.6231]
[1747604294347,4.27803113,2423.6,2423.0,10.075]
[1747604294348,4.12634946,2423.5,2423.0,10.075]
[1747604294552,2.64577716,2423.6,2423.5,0.00561566]
[1747604294894,14.77187057,2423.6,2423.5,0.00561566]
[1747604295451,15.0822937,2423.6,2423.5,0.00561566]
[1747604295649,15.8886937,2423.6,2423.5,0.00561566]
[1747604296266,13.24291654,2423.6,2423.5,0.00561566]
[1747604297693,12.12677451,2423.2,2423.1,0.00561566]
[1747604300893,12.11873328,2423.2,2423.1,0.00561566]
[1747604301468,12.11873328,2423.2,2423.1,9.52761566]
[1747604302701,12.11873328,2423.2,2423.1,10.07761566]
[1747604302875,4.12626366,2423.5,2423.2,0.55]
[1747604302876,4.12639924,2423.5,2423.2,0.55]
[1747604303074,4.92973829,2424.0,2423.2,0.55]
[1747604303292,4.1259869,2423.7,2423.2,4.67674305]
[1747604303499,4.12583735,2423.8,2423.4,0.55]
[1747604303665,4.12568524,2423.9,2423.4,4.67634868]
[1747604303871,4.12541254,2424.0,2423.4,1.51332117]
[1747604304066,9.48,2424.4,2423.6,0.55]
[1747604304301,4.12549273,2424.0,2423.7,9.521]
[1747604304620,9.48,2424.4,2423.8,0.55]
[1747604304621,4.1250912,2424.2,2423.8,0.55]
[1747604304768,4.12540332,2424.1,2423.8,0.55]
[1747604304975,4.12479153,2424.4,2424.0,0.55]
[1747604305182,3.93631153,2425.1,2424.2,0.55]
[1747604305368,4.12416543,2424.8,2424.3,9.521]
[1747604305573,8.0,2424.8,2424.3,9.521]
[1747604305802,2.64577716,2425.2,2424.5,0.8252]
[1747604306004,2.64577716,2425.2,2424.6,18.376]
[1747604306202,4.12405146,2424.8,2424.7,10.071]
[1747604306403,12.12422155,2424.7,2424.6,17.826]
[1747604306580,12.12422155,2424.7,2424.6,27.345]
[1747604307108,12.11687177,2424.7,2424.6,27.345]
[1747604308205,4.12476704,2424.4,2424.2,0.55]
[1747604308405,12.12490203,2424.3,2424.2,0.55]
[1747604308624,4.12524235,2424.1,2424.0,17.821]
[1747604308831,12.12609341,2423.6,2423.3,9.519]
[1747604309376,12.12609341,2423.6,2423.2,9.519]
[1747604309611,4.12643393,2423.4,2423.3,0.00561566]
[1747604309814,12.12643393,2423.4,2423.3,0.00561566]
[1747604310183,22.63373393,2423.4,2423.3,0.00561566]
[1747604310406,22.58373393,2423.4,2423.3,0.00561566]
[1747604310879,22.53373393,2423.4,2423.3,0.00561566]
[1747604312809,22.53373393,2423.4,2422.6,9.518]
[1747604312810,12.12745583,2422.8,2422.7,0.00561566]
[1747604313199,12.12301694,2422.8,2422.7,0.00561566]
[1747604314530,0.8053,2423.4,2422.7,0.00561566]
[1747604314694,0.8053,2423.4,2422.8,0.55]
[1747604314895,4.12660421,2423.3,2422.8,0.55]
[1747604315203,4.12687916,2423.2,2422.8,0.55]
[1747604315600,4.12672195,2423.3,2422.9,0.00561566]
[1747604315794,13.78898396,2423.7,2423.1,0.55]
[1747604315990,4.12677451,2423.2,2423.1,0.55]
[1747604316415,4.12634164,2423.5,2423.1,0.55]
[1747604316636,5.29502667,2424.4,2423.3,0.55]
[1747604316637,4.12623708,2423.6,2423.3,0.55]
[1747604316842,4.12609861,2423.6,2423.3,18.372]
[1747604317359,8.0,2423.7,2423.3,18.372]
[1747604317644,12.12643393,2423.4,2423.3,17.822]
[1747604318510,12.12643393,2423.4,2423.3,27.523]
[1747604318817,12.12081827,2423.4,2423.3,27.523]
[1747604319329,12.11566091,2423.4,2423.3,27.523]
[1747604319634,24.39744982,2423.4,2423.3,9.701]
[1747604319808,4.1276262,2422.7,2422.6,18.371]
[1747604320140,4.1276262,2422.7,2422.6,27.522]
[1747604321429,12.1276262,2422.7,2422.6,17.821]
[1747604321633,12.1276262,2422.7,2422.6,27.522]
[1747604321835,12.1276262,2422.7,2422.6,17.821]
[1747604323943,4.12881915,2422.0,2421.9,19.1663]
[1747604324141,4.12881915,2422.0,2421.9,28.8683]
[1747604324315,4.12871575,2422.1,2422.0,0.55]
[1747604325127,4.07871575,2422.1,2422.0,0.55]
[1747604326750,4.07871575,2422.1,2422.0,10.253]
[1747604328034,4.12873324,2422.1,2422.0,10.253]
[1747604328546,1.78808891,2422.5,2422.3,0.55]
[1747604328737,5.91613507,2422.5,2422.3,0.55]
[1747604329137,1.78808891,2422.5,2422.3,0.55]
[1747604329653,5.91615625,2422.5,2422.3,0.55]
[1747604329842,4.12813738,2422.4,2422.3,0.55]
[1747604331956,4.12864869,2422.1,2422.0,9.703]
[1747604332252,4.12864869,2422.1,2422.0,10.253]
[1747604332441,5.9167376,2422.1,2422.0,9.703]
[1747604332861,4.12933063,2421.7,2421.6,17.825]
[1747604333158,4.12933063,2421.7,2421.6,27.528]
[1747604333355,12.12933063,2421.7,2421.6,17.825]
[1747604333557,12.12933063,2421.7,2421.6,27.528]
[1747604333857,1.78808891,2422.3,2421.9,0.55]
[1747604334152,4.127888,2422.6,2422.0,4.12867014]
[1747604334362,12.12814913,2422.4,2422.2,0.55]
[1747604334767,4.12822232,2422.4,2422.2,0.55]
[1747604334970,4.1283078,2422.3,2422.2,0.55]
[1747604335854,4.12824709,2422.4,2422.2,0.55]
[1747604336424,8.30206845,2422.6,2422.2,0.55]
[1747604336648,0.30206845,2422.6,2422.2,0.55]
[1747604336969,13.91556843,2422.8,2422.2,0.55]
[1747604337274,4.12821972,2422.4,2422.2,0.55]
[1747604337977,1.78808891,2423.3,2422.4,0.55]
[1747604338274,0.30503931,2423.4,2422.6,4.67771337]
[1747604338441,4.12703037,2423.1,2422.7,9.704]
[1747604338646,4.12721186,2423.0,2422.7,9.704]
[1747604338846,4.12703109,2423.1,2422.8,0.55]
[1747604339047,4.12712702,2423.0,2422.8,0.55]
[1747604339287,4.12728548,2422.9,2422.8,0.55]
[1747604339698,4.12719421,2423.0,2422.6,0.55]
[1747604339901,4.12719421,2423.0,2422.9,0.55]
[1747604340379,4.12692516,2423.2,2422.9,0.55]
[1747604340974,4.1269606,2423.1,2422.9,0.55]
[1747604341181,1.78808891,2423.3,2422.9,0.55]
[1747604341384,1.78808891,2423.3,2422.9,1.98805856]
[1747604341561,8.0,2423.2,2422.9,1.98805856]
[1747604341954,1.78808891,2423.3,2422.9,1.98805856]
[1747604342153,1.78808891,2423.3,2422.9,6.92731668]
[1747604342452,1.78808891,2423.3,2422.9,2.80005856]
[1747604342647,5.91424248,2423.6,2423.1,4.67682875]
[1747604343073,9.535,2423.9,2423.0,5.37741738]
[1747604343074,4.1256629,2423.9,2423.4,0.55]
[1747604343276,1.78808891,2424.0,2423.6,1.3801]
[1747604343489,4.1249393,2424.3,2423.8,4.67574254]
[1747604343790,4.12487892,2424.4,2423.9,0.55]
[1747604343968,8.0,2424.5,2424.0,9.703]
[1747604344287,4.12473972,2424.4,2424.0,9.703]
[1747604344456,4.12495672,2424.3,2424.0,9.703]
[1747604344785,4.1247952,2424.4,2424.0,9.703]
[1747604344989,2.64577716,2425.7,2424.6,0.55]
[1747604345155,2.64577716,2425.7,2425.1,0.55]
[1747604345356,2.64577716,2425.7,2425.3,0.55]
[1747604345560,2.64577716,2425.7,2425.6,0.55]
[1747604345850,2.64577716,2425.7,2425.6,22.49369129]
[1747604346283,2.64577716,2425.7,2425.6,18.371]
[1747604346486,6.76829849,2425.7,2425.6,28.072]
[1747604347151,6.76829849,2425.7,2425.6,17.821]
[1747604347357,6.76829849,2425.7,2425.6,27.522]
[1747604347558,2.64577716,2425.7,2425.6,28.072]
[1747604348060,2.64577716,2425.7,2425.6,17.821]
[1747604348354,2.64577716,2425.7,2425.6,28.072]
[1747604348559,2.64577716,2425.7,2425.6,35.00189129]
[1747604348999,2.64577716,2425.7,2425.6,35.78699129]
[1747604349985,2.64577716,2425.7,2425.6,21.9633]
[1747604350161,2.64577716,2425.7,2425.6,41.2823]
[1747604350354,2.64010247,2425.7,2425.6,41.2823]
[1747604350558,2.64010247,2425.7,2425.6,45.40499129]
[1747604350971,12.12141232,2426.4,2425.7,0.55]
[1747604351159,4.12135486,2426.4,2425.7,4.85357412]
[1747604351359,4.12176147,2426.2,2425.7,4.85357412]
[1747604351585,4.12181881,2426.2,2425.7,4.85357412]
[1747604352191,8.0,2426.6,2425.7,4.85357412]
[1747604352394,4.12179575,2426.2,2425.7,4.85357412]
[1747604352700,4.12184877,2426.1,2425.7,4.85357412]
[1747604353196,4.12252133,2425.7,2425.6,13.6061]
[1747604353493,4.12252133,2425.7,2425.6,23.2751]
[1747604353861,4.12252133,2425.7,2425.6,23.8251]
[1747604354484,4.12252133,2425.7,2425.6,22.488]
[1747604354680,4.12252133,2425.7,2425.6,12.821]
[1747604354681,12.12252133,2425.7,2425.6,12.821]
[1747604354896,4.123943,2424.9,2424.8,17.807]
[1747604355096,4.123943,2424.9,2424.8,27.474]
[1747604355519,4.123943,2424.9,2424.8,17.807]
[1747604355724,4.12371134,2425.0,2424.8,9.667]
[1747604356024,0.7903,2425.3,2424.8,9.667]
[1747604356223,8.0,2425.1,2424.9,9.667]
[1747604356437,4.12422155,2424.7,2424.6,17.807]
[1747604356612,12.89566945,2424.6,2424.5,9.667]
[1747604356812,12.12541254,2424.0,2423.9,17.807]
[1747604356987,12.12541254,2424.0,2423.8,0.43806912]
[1747604356988,4.12558273,2423.9,2423.8,0.43806912]
[1747604357195,22.53178273,2423.9,2423.8,0.43806912]
[1747604357403,22.53178273,2423.9,2423.8,0.16770827]
[1747604357606,4.12811206,2422.5,2421.2,3.43775623]
[1747604357790,36.18131367,2423.9,2421.6,4.12950115]
[1747604357791,4.90347107,2423.0,2421.6,4.12950115]
[1747604358002,8.0,2423.3,2421.8,4.1290051]
[1747604358202,8.0,2422.9,2421.9,19.332]
[1747604358403,4.12842952,2422.3,2422.0,9.668]
[1747604358617,4.12882214,2422.0,2421.4,4.12978983]
[1747604358808,4.12882214,2422.0,2421.7,9.66]
[1747604358994,4.12904401,2421.9,2421.7,9.66]
[1747604359329,4.12967169,2421.5,2421.4,17.809]
[1747604359628,8.0,2422.2,2421.4,27.477]
[1747604359830,8.0,2422.2,2421.5,9.668]
[1747604360127,4.12950115,2421.6,2421.5,9.668]
[1747604360328,12.12950115,2421.6,2421.5,9.668]
[1747604360837,8.7808,2421.6,2420.8,4.13086214]
[1747604361044,8.7808,2421.6,2419.9,0.8138]
[1747604361045,8.0,2421.1,2419.9,0.8138]
[1747604361192,8.0,2420.9,2419.9,1.86228]
[1747604361393,4.13099751,2420.8,2419.9,1.86228]
[1747604361597,4.13114437,2420.7,2419.9,1.86228]
[1747604361800,12.13085301,2420.9,2420.1,0.55]
[1747604362146,8.0,2421.0,2420.2,17.83501431]
[1747604362447,8.0,2421.3,2420.4,4.13153549]
[1747604362731,4.13046158,2421.1,2420.5,9.671]
[1747604362948,4.13010152,2421.3,2420.6,4.15114519]
[1747604362949,8.0,2421.2,2420.6,4.15114519]
[1747604363135,0.7995,2422.0,2420.7,2.5243026]
[1747604363434,4.12942636,2421.7,2421.0,4.68040875]
[1747604363633,0.7995,2422.0,2421.3,0.55]
[1747604363835,9.905,2422.1,2421.3,0.55]
[1747604364032,14.03365992,2422.1,2421.4,0.01997554]
[1747604364235,4.12901574,2421.9,2421.5,0.55]
[1747604364433,4.128863,2422.0,2421.7,0.55]
[1747604364636,4.12847853,2422.2,2421.7,0.55]
[1747604365005,12.12838025,2422.3,2421.7,0.55]
[1747604365202,4.12917363,2421.8,2421.1,21.94530526]
[1747604365431,8.0,2422.5,2421.3,0.55]
[1747604365709,8.0,2422.0,2421.5,0.55]
[1747604366198,4.1285043,2422.2,2421.5,4.67961721]
[1747604366540,4.12849624,2422.2,2421.7,0.55]
[1747604366753,4.128432,2422.3,2421.9,0.55]
[1747604366962,4.12821219,2422.4,2421.9,0.55]
[1747604367135,4.1276262,2422.7,2421.9,0.55]
[1747604367328,4.12852692,2422.2,2421.9,0.55]
[1747604367530,8.0,2422.1,2421.9,0.55]
[1747604367962,0.31259931,2422.5,2421.9,0.55]
[1747604368266,4.12847856,2422.2,2421.9,0.55]
[1747604368629,12.12840522,2422.3,2421.9,0.55]
[1747604369160,4.12825028,2422.4,2421.9,0.55]
[1747604369364,4.12746939,2422.8,2422.1,4.67860581]
[1747604369744,4.12746939,2422.8,2422.2,4.12847824]
[1747604369944,4.12746939,2422.8,2422.4,0.55]
[1747604370141,4.12711514,2423.0,2422.4,4.67811966]
[1747604370485,0.8029,2423.8,2422.8,4.67734536]
[1747604370643,0.8029,2424.3,2423.0,0.55]
[1747604370968,4.12564627,2423.9,2423.2,0.55]
[1747604371166,0.8029,2424.3,2423.5,0.55]
[1747604371470,4.12422155,2424.7,2423.8,0.55]
[1747604371768,4.90088312,2424.8,2423.8,0.55]
[1747604371769,12.12456176,2424.5,2423.8,22.50064336]
[1747604372065,4.12554035,2424.0,2423.9,10.227]
[1747604372269,4.12536401,2424.1,2423.9,10.227]
[1747604372465,8.0,2424.4,2423.9,10.227]
[1747604372666,4.12534578,2424.1,2423.9,10.227]
[1747604372868,4.12487216,2424.4,2423.9,10.227]
[1747604373234,4.12475864,2424.4,2423.9,14.35257367]
[1747604373660,12.12463907,2424.5,2423.9,10.227]
[1747604373966,4.12515229,2424.2,2424.1,0.55]
[1747604374166,4.12422155,2424.7,2424.1,0.55]
[1747604374374,4.12493159,2424.3,2424.1,0.55]
[1747604374545,4.12507218,2424.2,2424.1,0.55]
[1747604374955,4.12427677,2424.7,2423.8,17.825]
[1747604375157,4.12083704,2424.0,2423.9,10.225]
[1747604375555,4.12083704,2424.0,2423.9,0.55]
[1747604375758,4.12083704,2424.0,2423.9,10.223]
[1747604376677,4.12532733,2424.1,2423.9,10.223]
[1747604376879,4.12523665,2424.2,2423.9,10.223]
[1747604377179,4.12504431,2424.3,2423.9,10.223]
[1747604377376,4.12490567,2424.3,2423.9,13.0278]
[1747604377579,8.0,2424.3,2423.9,13.0278]
[1747604377782,8.0,2424.3,2423.9,17.1532984]
[1747604377991,8.0,2424.3,2423.9,13.0278]
[1747604378482,4.12491014,2424.3,2423.9,13.0278]
[1747604378981,1.78808891,2425.0,2424.3,0.55]
[1747604379146,4.12390158,2424.9,2424.5,0.55]
[1747604379747,9.78808891,2425.0,2424.5,0.55]
[1747604379975,4.12414489,2424.8,2424.5,0.55]
[1747604381179,4.12394004,2424.9,2424.5,0.55]
[1747604381482,13.91191028,2425.0,2424.9,0.00684045]
[1747604381692,13.91191028,2425.0,2424.9,9.79084045]
[1747604382983,13.91191028,2425.0,2424.9,0.00684045]
[1747604385166,24.02191028,2425.0,2424.9,0.00684045]
[1747604386507,24.02191028,2425.0,2423.4,0.7719]
[1747604386508,12.12524235,2424.1,2423.4,0.7719]
[1747604386805,12.12524235,2424.1,2422.5,0.18242001]
[1747604386806,8.0,2423.2,2422.7,27.596]
[1747604387005,12.12745583,2422.8,2422.7,9.783]
[1747604387192,4.12864869,2422.1,2422.0,17.813]
[1747604387397,4.12864869,2422.1,2422.0,27.596]
[1747604387705,4.12182025,2422.1,2422.0,27.597]
[1747604387874,8.0,2422.6,2422.0,27.597]
[1747604388075,4.12841055,2422.3,2422.0,27.597]
[1747604388274,4.12847824,2422.2,2422.0,27.597]
[1747604388497,4.12855472,2422.2,2422.0,27.597]
[1747604388804,4.12864869,2422.1,2422.0,27.597]
[1747604390486,12.12864869,2422.1,2422.0,27.597]
[1747604392027,12.12864869,2422.1,2422.0,17.813]
[1747604392324,12.12864869,2422.1,2422.0,27.6]
[1747604393927,12.12162712,2422.1,2422.0,9.787]
[1747604394220,4.12811899,2422.5,2422.0,10.337]
[1747604394526,4.1282328,2422.4,2422.1,0.55]
[1747604395221,9.78808891,2422.5,2422.1,0.55]
[1747604395789,9.78808891,2422.5,2422.3,0.55]
[1747604396019,4.12728548,2422.9,2422.3,0.55]
[1747604396232,1.78808891,2422.9,2422.3,4.69822856]
[1747604396398,4.12748546,2422.8,2422.4,2.25202286]
[1747604396723,1.78808891,2422.9,2422.6,0.55]
[1747604396929,1.78808891,2422.9,2422.6,4.67779099]
[1747604397125,1.78808891,2422.9,2422.8,0.55]
[1747604397326,1.78808891,2423.3,2422.8,0.55]
[1747604397491,1.78808891,2423.3,2422.8,4.67739889]
[1747604397829,4.12655952,2423.4,2422.9,0.55]
[1747604398037,4.12655952,2423.4,2423.0,9.789]
[1747604398195,8.0,2423.5,2423.2,0.55]
[1747604398390,5.91403744,2423.7,2423.2,0.55]
[1747604398589,4.12624195,2423.6,2423.2,0.55]
[1747604399014,8.0,2423.5,2423.2,0.55]
[1747604399428,4.12624195,2423.6,2423.2,0.55]
[1747604399617,1.78808891,2423.7,2423.2,0.55]
[1747604399828,4.12643393,2423.4,2423.3,10.338]
[1747604400002,4.1196275,2423.4,2423.3,10.338]
[1747604400199,1.78808891,2423.7,2423.4,0.55]
[1747604400400,10.4646,2424.4,2423.6,0.55]
[1747604400634,4.12524356,2424.1,2423.6,0.55]
[1747604400836,0.05156923,2424.2,2423.6,0.55]
[1747604401044,0.31577219,2424.3,2423.5,0.7625]
[1747604401249,10.4646,2424.4,2423.7,9.788]
[1747604401250,4.12560151,2423.9,2423.7,9.788]
[1747604401543,4.12507092,2424.3,2423.8,0.55]
[1747604401756,11.89808891,2424.5,2423.8,0.55]
[1747604402041,4.12558273,2423.9,2423.8,0.55]
[1747604402394,8.0,2424.4,2423.8,0.55]
[1747604402599,4.12558273,2423.9,2423.8,0.55]
[1747604402903,4.12504005,2424.3,2423.8,1.5838]
[1747604403103,16.02272348,2424.5,2423.8,0.55]
[1747604403322,1.78808891,2424.5,2424.1,0.55]
[1747604403525,8.0,2424.4,2424.2,9.787]
[1747604403724,1.78808891,2424.5,2424.2,9.787]
[1747604404437,4.12457894,2424.5,2424.3,0.55]
[1747604404751,1.78808891,2424.7,2424.3,1.3686]
[1747604404910,1.78808891,2424.7,2424.3,7.11407774]
[1747604405304,1.78808891,2424.7,2424.4,4.12473189]
[1747604405723,1.78808891,2425.2,2424.3,2.98928979]
[1747604405921,4.12362794,2425.1,2424.6,0.55]
[1747604406127,1.78808891,2425.2,2424.8,0.55]
[1747604406400,4.12388139,2424.9,2424.8,0.55]
[1747604406924,8.0,2424.8,2424.7,9.785]
[1747604407129,12.12405146,2424.8,2424.7,9.785]
[1747604408540,12.12405146,2424.8,2424.7,9.784]
[1747604408862,4.12507218,2424.2,2424.1,17.819]
[1747604409063,4.12507218,2424.2,2424.1,28.114]
[1747604409447,4.12507218,2424.2,2424.1,27.564]
[1747604409959,4.12507218,2424.2,2424.1,17.819]
[1747604410163,4.12507218,2424.2,2424.1,27.564]
[1747604410371,5.908419,2424.2,2424.1,27.564]
[1747604410585,5.908419,2424.2,2424.1,17.819]
[1747604410865,12.12592317,2423.7,2423.6,9.745]
[1747604411027,4.12643393,2423.4,2423.3,17.814]
[1747604411228,4.12660421,2423.3,2423.2,9.745]
[1747604411422,4.12779658,2422.6,2422.5,18.6346]
[1747604411663,4.12779658,2422.6,2422.5,27.559]
[1747604411886,12.12779658,2422.6,2422.5,27.559]
[1747604412090,12.12779658,2422.6,2422.5,17.814]
[1747604412386,12.12779658,2422.6,2421.6,10.5486]
[1747604412387,4.129146,2421.9,2421.8,17.815]
[1747604412689,4.12695775,2423.1,2421.8,9.746]
[1747604412859,4.12802658,2422.5,2421.9,6.88499569]
[1747604413061,4.12816066,2422.4,2421.9,2.7561]
[1747604413384,4.12814149,2422.4,2421.9,2.7561]
[1747604413587,4.12845856,2422.3,2422.0,9.746]
[1747604413794,4.12845856,2422.3,2422.1,0.55]
[1747604413956,4.12847824,2422.2,2422.1,0.55]
[1747604414289,4.12811892,2422.5,2422.2,0.55]
[1747604414590,4.12807448,2422.5,2422.2,0.55]
[1747604415458,4.12790844,2422.6,2422.2,0.55]
[1747604415661,4.12818144,2422.4,2421.9,6.88502604]
[1747604415867,4.12836769,2422.3,2422.0,10.297]
[1747604416064,4.1282259,2422.4,2422.0,10.297]
[1747604416271,4.1282485,2422.4,2422.0,10.297]
[1747604416770,0.30804675,2423.0,2422.0,10.297]
[1747604416978,4.12815789,2422.4,2422.0,10.297]
[1747604417390,4.12814481,2422.4,2422.0,10.297]
[1747604418402,4.12842124,2422.3,2422.1,9.749]
[1747604418603,4.92385508,2423.6,2422.7,0.55]
[1747604418775,0.7977,2423.6,2422.9,0.55]
[1747604419095,4.12651672,2423.4,2422.9,1.3406]
[1747604419294,4.12704534,2423.1,2422.9,1.3406]
[1747604419594,4.12702722,2423.1,2422.9,1.3406]
[1747604419771,4.1261101,2423.6,2422.9,1.3406]
[1747604419772,4.12622828,2423.6,2422.9,1.3406]
[1747604419974,4.12711514,2423.0,2422.9,1.3406]
[1747604420501,8.0,2423.6,2422.9,4.23156]
[1747604420797,4.34095692,2424.0,2423.5,0.55]
[1747604420964,4.34095692,2424.0,2423.6,27.568]
[1747604421160,8.0,2424.0,2423.6,27.568]
[1747604421383,8.0,2424.0,2423.6,28.36103067]
[1747604421702,4.12532081,2424.1,2423.6,32.48712067]
[1747604421903,0.7977,2425.1,2424.1,0.55]
[1747604422196,4.12413976,2424.8,2424.3,4.6749007]
[1747604422376,4.12415763,2424.8,2424.4,0.55]
[1747604422574,10.5277,2425.5,2424.5,17.82]
[1747604422575,4.42573776,2425.2,2424.5,17.82]
[1747604422775,4.12431859,2424.7,2424.6,0.55]
[1747604422975,4.12431859,2424.7,2424.6,10.298]
[1747604424469,4.12405829,2424.8,2424.6,10.298]
[1747604424682,4.12422155,2424.7,2424.6,10.298]
[1747604426498,8.0,2425.1,2424.6,10.298]
[1747604426677,4.12383171,2425.0,2424.6,13.1098]
[1747604427411,12.12361994,2425.1,2424.6,10.298]
[1747604427713,4.12383776,2425.0,2424.8,0.55]
[1747604427917,4.12388139,2424.9,2424.8,0.55]
[1747604430417,1.78334682,2425.2,2424.8,0.55]
[1747604430577,10.11,2425.9,2424.8,0.01981947]
[1747604430578,1.78334682,2425.5,2424.8,0.01981947]
[1747604430776,1.78334682,2425.5,2424.8,2.58922747]
[1747604430995,1.78334682,2426.2,2425.3,0.55]
[1747604431192,1.78334682,2426.2,2425.5,0.55]
[1747604431391,4.12227052,2425.9,2425.7,0.55]
[1747604431882,4.12235138,2425.8,2425.7,0.55]
[1747604432082,2.09538693,2426.2,2425.7,0.55]
[1747604432390,10.09538693,2426.2,2425.7,0.55]
[1747604432593,4.1220403,2426.0,2425.7,0.55]
[1747604432801,1.78334682,2426.2,2425.7,0.55]
[1747604433003,4.12124099,2426.5,2425.7,0.55]
[1747604433216,4.12206057,2426.0,2425.7,0.55]
[1747604433683,4.1221003,2426.0,2425.7,10.158]